bitfinex-derivatives/quotes_BTCF0:USTF0_20250709
["timestamp","ask_amount","ask_price","bid_price","bid_amount"]
[1752093789647,0.97528147,111010.0,111000.0,0.38040226]
[1752093789841,0.97528147,111010.0,111000.0,0.13040226]
[1752093790046,0.97528147,111010.0,111000.0,0.10382226]
[1752093791746,0.97528147,111010.0,111000.0,0.11382226]
[1752093792648,0.97528147,111010.0,111000.0,0.12438295]
[1752093793145,0.97528147,111010.0,111000.0,0.12437661]
[1752093793446,0.97528147,111010.0,111000.0,0.11029707]
[1752093793649,0.97528147,111010.0,111000.0,0.09973638]
[1752093794737,0.97528147,111010.0,111000.0,0.09972456]
[1752093795043,0.97528147,111010.0,111000.0,0.01972456]
[1752093795248,0.97528147,111010.0,111000.0,0.09972456]
[1752093796639,0.97528147,111010.0,111000.0,0.10972456]
[1752093797148,0.97528147,111010.0,111000.0,0.30643986]
[1752093797648,0.97528147,111010.0,111000.0,0.12630456]
[1752093798053,0.97528147,111010.0,111000.0,0.30643986]
[1752093799150,1.63336147,111010.0,111000.0,0.38279986]
[1752093799547,1.63336147,111010.0,111000.0,0.35893986]
[1752093800253,1.63336147,111010.0,111000.0,0.17880456]
[1752093801552,1.63336147,111010.0,111000.0,0.14880456]
[1752093802949,1.63336147,111010.0,111000.0,0.08880456]
[1752093803454,1.63336147,111010.0,111000.0,0.13880456]
[1752093803655,1.63336147,111010.0,111000.0,0.13882817]
[1752093804950,1.63336147,111010.0,111000.0,0.06974817]
[1752093805151,0.1801352,111000.0,110990.0,0.2323514]
[1752093805454,0.90909757,111000.0,110990.0,0.33335259]
[1752093805655,0.63287112,111000.0,110990.0,0.33335259]
[1752093806045,0.63287112,111000.0,110990.0,0.38975259]
[1752093806248,0.63287112,111000.0,110990.0,0.39475259]
[1752093806458,0.63387112,111000.0,110990.0,0.39975258]
[1752093806760,0.63387112,111000.0,110990.0,0.68975258]
[1752093807149,0.63387112,111000.0,110990.0,0.68475258]
[1752093807346,0.63387112,111000.0,110990.0,0.68575258]
[1752093807657,0.63387112,111000.0,110990.0,0.93197903]
[1752093807847,0.63287112,111000.0,110990.0,0.92797903]
[1752093808355,0.63287112,111000.0,110990.0,0.65175258]
[1752093808556,0.57527112,111000.0,110990.0,0.65175258]
[1752093808747,0.5409352,111000.0,110990.0,0.65175258]
[1752093811251,0.5409352,111000.0,110990.0,0.71175258]
[1752093811951,0.5409352,111000.0,110990.0,0.53160118]
[1752093812152,0.5409352,111000.0,110990.0,0.72175258]
[1752093814262,0.57522928,111000.0,110990.0,0.72175258]
[1752093814661,0.5409352,111000.0,110990.0,0.72175258]
[1752093814864,0.57522891,111000.0,110990.0,0.72175258]
[1752093815162,0.5409352,111000.0,110990.0,0.72175258]
[1752093815460,0.57523101,111000.0,110990.0,0.72175258]
[1752093815655,0.21443101,111000.0,110990.0,0.69175258]
[1752093815861,0.5409352,111000.0,110990.0,0.69175258]
[1752093816060,0.57522392,111000.0,110990.0,0.69175258]
[1752093816562,0.5752232,111000.0,110990.0,0.67175258]
[1752093816762,0.85144965,111000.0,110990.0,0.67175258]
[1752093817161,0.85144965,111000.0,110990.0,0.68542231]
[1752093817355,0.5752232,111000.0,110990.0,0.68542231]
[1752093817555,0.85144965,111000.0,110990.0,0.68542231]
[1752093819163,0.5752232,111000.0,110990.0,0.68542231]
[1752093820057,0.5752232,111000.0,110990.0,0.71542231]
[1752093820565,0.5752232,111000.0,110990.0,0.71542211]
[1752093820962,1.2321832,111000.0,110990.0,0.99164856]
[1752093821163,0.8370952,111000.0,110990.0,0.71542211]
[1752093821360,1.1978952,111000.0,110990.0,0.71542211]
[1752093821565,1.23219128,111000.0,110990.0,1.01164856]
[1752093822368,1.23219128,111000.0,110990.0,0.73542211]
[1752093822556,1.23219128,111000.0,110990.0,1.01164856]
[1752093823060,1.23211128,111000.0,110990.0,1.01164856]
[1752093823261,1.23211128,111000.0,110990.0,1.02572962]
[1752093823864,0.1801352,111000.0,110990.0,1.02572962]
[1752093824062,0.5409352,111000.0,110990.0,1.02572962]
[1752093824266,0.5749547,111000.0,110990.0,1.02572962]
[1752093824467,0.5409352,111000.0,110990.0,1.02572962]
[1752093824962,0.57495055,111000.0,110990.0,1.02572962]
[1752093825163,0.57495055,111000.0,110990.0,0.95572962]
[1752093825363,0.5409352,111000.0,110990.0,0.95572962]
[1752093825862,0.57493338,111000.0,110990.0,0.95572962]
[1752093826464,0.57493338,111000.0,110990.0,0.64572962]
[1752093826465,0.21413338,111000.0,110990.0,0.64572962]
[1752093826770,0.21413338,111000.0,110990.0,1.01572962]
[1752093826968,0.5409352,111000.0,110990.0,1.01572962]
[1752093827174,0.1801352,111000.0,110990.0,1.01572962]
[1752093827377,0.1801352,111000.0,110990.0,0.73950317]
[1752093827585,0.5409352,111000.0,110990.0,1.01572962]
[1752093828785,0.5409352,111000.0,110990.0,1.01569499]
[1752093829679,0.5409352,111000.0,110990.0,1.01569746]
[1752093829980,0.5409352,111000.0,110990.0,0.64569746]
[1752093830182,0.5409352,111000.0,110990.0,0.96569746]
[1752093830576,0.5409352,111000.0,110990.0,0.68947101]
[1752093830981,0.5409352,111000.0,110990.0,0.96569746]
[1752093831574,0.5409352,111000.0,110990.0,1.00569717]
[1752093833880,0.5409352,111000.0,110990.0,1.02296022]
[1752093834477,0.5409352,111000.0,110990.0,1.38376022]
[1752093834478,0.1801352,111000.0,110990.0,1.38376022]
[1752093834680,0.1801352,111000.0,110990.0,1.02296022]
[1752093835082,0.1801352,111000.0,110990.0,0.97296022]
[1752093835686,0.5409352,111000.0,110990.0,0.97296022]
[1752093836187,0.1801352,111000.0,110990.0,1.05753377]
[1752093836386,0.1801352,111000.0,110990.0,1.33376022]
[1752093836588,0.1801352,111000.0,110990.0,1.02296022]
[1752093836781,0.1801352,111000.0,110990.0,1.36729022]
[1752093838285,0.1801352,111000.0,110990.0,1.09106377]
[1752093838584,0.1801352,111000.0,110990.0,1.36729022]
[1752093839490,0.1801352,111000.0,110990.0,1.09106377]
[1752093840088,0.1801352,111000.0,110990.0,1.3671242]
[1752093841286,0.1801352,111000.0,110990.0,1.0063242]
[1752093841493,0.5409352,111000.0,110990.0,1.0163242]
[1752093842287,0.5409352,111000.0,110990.0,0.9563242]
[1752093842488,0.5409352,111000.0,110990.0,0.9720942]
[1752093842884,0.5409352,111000.0,110990.0,0.69586775]
[1752093843086,0.5409352,111000.0,110990.0,0.9720942]
[1752093843779,0.5537969,111010.0,110990.0,1.5377751]
[1752093844085,0.76736884,111010.0,111000.0,0.53433165]
[1752093844286,0.7339308,111010.0,111000.0,0.72241495]
[1752093844789,0.76737941,111010.0,111000.0,0.72241495]
[1752093844991,0.76737941,111010.0,111000.0,0.64241495]
[1752093845186,0.76737941,111010.0,111000.0,0.2760533]
[1752093845391,1.04360586,111010.0,111000.0,0.1821133]
[1752093845586,1.04360586,111010.0,111000.0,0.1978833]
[1752093845990,1.04560586,111010.0,111000.0,0.1978833]
[1752093846194,0.77037941,111010.0,111000.0,0.3780185]
[1752093846387,0.77037941,111010.0,111000.0,0.4019885]
[1752093846592,0.77037941,111010.0,111000.0,0.3680185]
[1752093846786,0.82207941,111010.0,111000.0,0.3680185]
[1752093847487,1.09830586,111010.0,111000.0,0.3680185]
[1752093847688,0.82207941,111010.0,111000.0,0.3681003]
[1752093847984,0.82207941,111010.0,111000.0,0.64432675]
[1752093848190,0.82207941,111010.0,111000.0,0.3681003]
[1752093848596,0.77037941,111010.0,111000.0,0.64432675]
[1752093848898,0.77037941,111010.0,111000.0,0.66800675]
[1752093849593,0.77037941,111010.0,111000.0,0.90800675]
[1752093849797,1.42585941,111010.0,111000.0,0.90800675]
[1752093850096,1.42585941,111010.0,111000.0,1.02150675]
[1752093850494,1.42585941,111010.0,111000.0,1.02150577]
[1752093851600,1.42585941,111010.0,111000.0,0.97150577]
[1752093851801,1.42585941,111010.0,111000.0,0.95742569]
[1752093853599,1.42585941,111010.0,111000.0,0.93331165]
[1752093854993,1.42585941,111010.0,111000.0,0.60331165]
[1752093855195,1.42585941,111010.0,111000.0,0.93331165]
[1752093856496,1.42585941,111010.0,111000.0,0.95331165]
[1752093856896,1.42585941,111010.0,111000.0,0.6770852]
[1752093857304,1.42585941,111010.0,111000.0,0.95331165]
[1752093857805,1.42585941,111010.0,111000.0,0.89981165]
[1752093860006,1.42585941,111010.0,111000.0,0.86981165]
[1752093861407,0.77037941,111010.0,111000.0,0.84681165]
[1752093861612,1.42533941,111010.0,111000.0,0.92461165]
[1752093861910,1.42533941,111010.0,111000.0,0.73567088]
[1752093862510,1.42533941,111010.0,111000.0,1.02567088]
[1752093862912,1.42533941,111010.0,111000.0,0.76567088]
[1752093863208,1.42533941,111010.0,111000.0,0.99567088]
[1752093863414,0.76923114,111010.0,111000.0,0.99567088]
[1752093863615,1.42411114,111010.0,111000.0,0.99567088]
[1752093864404,1.42411114,111010.0,111000.0,0.91461165]
[1752093864603,1.42411114,111010.0,111000.0,0.6383852]
[1752093864813,1.42411114,111010.0,111000.0,0.91461165]
[1752093865116,1.42411114,111010.0,111000.0,0.93461165]
[1752093865318,1.42411114,111010.0,111000.0,1.01567088]
[1752093866411,1.3918108,111010.0,111000.0,0.93461165]
[1752093866610,1.3918108,111010.0,111000.0,0.94461165]
[1752093867014,1.66803725,111010.0,111000.0,0.35645]
[1752093867215,1.72143725,111010.0,111000.0,0.35645]
[1752093869814,1.66803725,111010.0,111000.0,0.5365853]
[1752093870015,1.3918108,111010.0,111000.0,0.86581175]
[1752093870221,1.3918108,111010.0,111000.0,0.91791175]
[1752093870509,1.3918108,111010.0,111000.0,0.97081175]
[1752093871521,1.3918108,111010.0,111000.0,0.98081175]
[1752093872215,0.7369308,111010.0,111000.0,0.98081175]
[1752093872409,1.2905575,111010.0,111000.0,0.60081175]
[1752093872612,1.2905575,111010.0,111000.0,0.71081175]
[1752093873913,1.2905575,111010.0,111000.0,0.60081175]
[1752093874114,1.2905575,111010.0,111000.0,0.98081175]
[1752093874309,1.2905575,111010.0,111000.0,0.7045853]
[1752093874513,1.2905575,111010.0,111000.0,0.98081175]
[1752093875021,1.2905575,111010.0,111000.0,0.92081175]
[1752093875317,0.185119,111010.0,111000.0,1.4916382]
[1752093876717,0.185119,111010.0,111000.0,1.8424382]
[1752093876918,0.005,111010.0,111000.0,1.8424382]
[1752093877220,0.69488614,111020.0,111010.0,0.180119]
[1752093877522,0.64985694,111020.0,111010.0,1.58447545]
[1752093878521,0.65385694,111020.0,111010.0,1.58447545]
[1752093879122,0.65585694,111020.0,111010.0,1.58447545]
[1752093879617,0.65585694,111020.0,111010.0,1.308249]
[1752093879822,0.65585694,111020.0,111010.0,1.58447545]
[1752093880022,0.65585694,111020.0,111010.0,1.55447545]
[1752093880621,0.65585694,111020.0,111010.0,1.61694337]
[1752093881121,0.65585694,111020.0,111010.0,1.91154337]
[1752093881625,0.29505694,111020.0,111010.0,1.92154337]
[1752093882423,0.25002994,111020.0,111010.0,1.92154337]
[1752093883915,0.02488754,111020.0,111010.0,2.28234337]
[1752093884122,0.20499034,111020.0,111010.0,1.92154337]
[1752093884326,0.02488754,111020.0,111010.0,1.92154337]
[1752093884824,0.02488754,111020.0,111010.0,2.28234337]
[1752093885021,0.02088754,111020.0,111010.0,2.25234337]
[1752093885321,0.002,111020.0,111010.0,2.27011337]
[1752093885520,0.51672745,111040.0,111030.0,0.1800866]
[1752093885718,0.56175335,111040.0,111030.0,2.13302305]
[1752093885918,0.56175335,111040.0,111030.0,2.24292305]
[1752093886112,0.56175335,111040.0,111030.0,1.91292305]
[1752093886321,0.20095335,111040.0,111030.0,2.25292305]
[1752093886717,0.02286845,111040.0,111030.0,2.8899495]
[1752093886925,0.20293885,111040.0,111030.0,2.5291495]
[1752093887224,0.02286845,111040.0,111030.0,2.90708375]
[1752093887719,0.00378805,111040.0,111030.0,3.58720375]
[1752093887923,0.02110767,111050.0,111040.0,0.1800704]
[1752093888113,0.02110767,111050.0,111040.0,1.31291685]
[1752093888319,0.630851,111070.0,111060.0,0.1800379]
[1752093888520,0.630851,111070.0,111060.0,2.13261435]
[1752093888722,0.630851,111070.0,111060.0,2.24251435]
[1752093889322,0.5408367,111070.0,111060.0,2.24251435]
[1752093889528,0.5448367,111070.0,111060.0,1.9662879]
[1752093889825,0.5448367,111070.0,111060.0,2.24251435]
[1752093890227,0.5944367,111070.0,111060.0,2.31340931]
[1752093890615,0.5944367,111070.0,111060.0,2.32340931]
[1752093891226,0.5954367,111070.0,111060.0,2.32340931]
[1752093891422,0.2346367,111070.0,111060.0,2.28425931]
[1752093891627,0.5954367,111070.0,111060.0,2.28748931]
[1752093892527,0.5954367,111070.0,111060.0,1.8304679]
[1752093892729,0.6477367,111070.0,111060.0,2.10669435]
[1752093894624,0.6477367,111070.0,111060.0,1.8304679]
[1752093894824,0.6477367,111070.0,111060.0,2.10669435]
[1752093896632,0.1830367,111070.0,111060.0,2.10669435]
[1752093896929,0.5438367,111070.0,111060.0,2.21479435]
[1752093897322,0.1830367,111070.0,111060.0,2.26479435]
[1752093897731,0.5438367,111070.0,111060.0,2.26479435]
[1752093898732,0.5438367,111070.0,111060.0,2.55939435]
[1752093899636,0.5438367,111070.0,111060.0,2.8356208]
[1752093899837,0.5438367,111070.0,111060.0,2.55939435]
[1752093900937,0.5438367,111070.0,111060.0,2.50939435]
[1752093901938,0.1830367,111070.0,111060.0,2.54939435]
[1752093902136,0.5438367,111070.0,111060.0,2.54939435]
[1752093902536,0.1830367,111070.0,111060.0,2.8256208]
[1752093903941,0.5438367,111070.0,111060.0,2.2731679]
[1752093904132,0.5438367,111070.0,111060.0,2.8256208]
[1752093904834,0.5438367,111070.0,111060.0,2.54939435]
[1752093905036,0.5438367,111070.0,111060.0,2.49559435]
[1752093905237,0.6479367,111070.0,111060.0,2.49559435]
[1752093905640,0.6479367,111070.0,111060.0,2.51559435]
[1752093905835,0.6479367,111070.0,111060.0,2.2393679]
[1752093906141,0.6479367,111070.0,111060.0,2.51559435]
[1752093906439,0.6479367,111070.0,111060.0,2.13559435]
[1752093906647,0.6479367,111070.0,111060.0,2.50559435]
[1752093906944,0.6479367,111070.0,111060.0,2.2293679]
[1752093907146,0.6479367,111070.0,111060.0,2.50559435]
[1752093907739,0.6479367,111070.0,111060.0,2.45129445]
[1752093908340,0.6479367,111070.0,111060.0,2.24802645]
[1752093908542,0.6479367,111070.0,111060.0,2.45173445]
[1752093908741,0.1800542,111050.0,111040.0,0.5420126]
[1752093909050,0.55965042,111050.0,111040.0,0.5550814]
[1752093909242,0.66715042,111050.0,111040.0,1.48346785]
[1752093909442,0.30635042,111050.0,111040.0,1.48346785]
[1752093909643,0.67545041,111050.0,111040.0,1.46212085]
[1752093910049,0.95167686,111050.0,111040.0,0.35367]
[1752093910252,0.95167686,111050.0,111040.0,0.35467]
[1752093910450,0.95167686,111050.0,111040.0,0.35460863]
[1752093910748,0.95167686,111050.0,111040.0,0.37175863]
[1752093911143,0.67545041,111050.0,111040.0,0.37175863]
[1752093911443,0.67545041,111050.0,111040.0,0.49811685]
[1752093911444,0.96669041,111050.0,111040.0,0.49811685]
[1752093911649,1.31919042,111050.0,111040.0,0.80811685]
[1752093912150,1.31919042,111050.0,111040.0,0.76729685]
[1752093912351,1.32019042,111050.0,111040.0,0.80611685]
[1752093912554,0.19985042,111050.0,111040.0,0.80611685]
[1752093912747,0.56265042,111050.0,111040.0,0.90901685]
[1752093912947,0.56265042,111050.0,111040.0,0.6327904]
[1752093913149,0.20185042,111050.0,111040.0,0.90901685]
[1752093913448,0.56165042,111050.0,111040.0,0.90901685]
[1752093913644,0.56065042,111050.0,111040.0,0.90901685]
[1752093913851,0.55965042,111050.0,111040.0,0.90901685]
[1752093914051,0.55965042,111050.0,111040.0,0.91001685]
[1752093914548,0.55965042,111050.0,111040.0,0.91201685]
[1752093915056,0.55965042,111050.0,111040.0,0.96201685]
[1752093916657,0.55965042,111050.0,111040.0,0.95201685]
[1752093917456,0.19885042,111050.0,111040.0,0.95201685]
[1752093918155,0.55965042,111050.0,111040.0,0.95201685]
[1752093918853,0.19885042,111050.0,111040.0,0.95201685]
[1752093919062,0.55965042,111050.0,111040.0,0.95201685]
[1752093921662,0.61075042,111050.0,111040.0,1.1845904]
[1752093921852,0.65905042,111050.0,111040.0,1.2145904]
[1752093922053,0.65905042,111050.0,111040.0,1.2382604]
[1752093922457,0.66005042,111050.0,111040.0,1.2372604]
[1752093922760,0.93627687,111050.0,111040.0,0.5600704]
[1752093922960,0.66005042,111050.0,111040.0,0.5752204]
[1752093923161,0.66005042,111050.0,111040.0,0.5600704]
[1752093923660,0.66005042,111050.0,111040.0,0.5752204]
[1752093924555,0.66005042,111050.0,111040.0,0.85144685]
[1752093924765,0.66005042,111050.0,111040.0,0.5752204]
[1752093925060,0.66005042,111050.0,111040.0,0.85144685]
[1752093925262,0.66005042,111050.0,111040.0,0.5752204]
[1752093925560,0.66005042,111050.0,111040.0,0.5252204]
[1752093925763,0.66005042,111050.0,111040.0,0.5488904]
[1752093926459,0.66005042,111050.0,111040.0,0.2188904]
[1752093926657,0.66005042,111050.0,111040.0,0.5288904]
[1752093927865,0.66005042,111050.0,111040.0,0.80511685]
[1752093928068,0.66005042,111050.0,111040.0,0.5288904]
[1752093928458,0.66005042,111050.0,111040.0,0.32515]
[1752093928654,0.93627687,111050.0,111040.0,0.32515]
[1752093929159,0.66005042,111050.0,111040.0,0.32515]
[1752093929563,0.66005042,111050.0,111040.0,0.31]
[1752093929763,0.1800704,111040.0,111030.0,0.2250965]
[1752093929963,1.2925504,111040.0,111030.0,0.5602465]
[1752093930164,1.56877685,111040.0,111030.0,0.33515]
[1752093930560,1.56877685,111040.0,111030.0,0.32]
[1752093930966,1.56877685,111040.0,111030.0,0.322]
[1752093931662,1.56877685,111040.0,111030.0,0.362]
[1752093932169,1.56877685,111040.0,111030.0,0.363]
[1752093933572,1.2925504,111040.0,111030.0,0.363]
[1752093933864,1.56877685,111040.0,111030.0,0.363]
[1752093934265,1.56877685,111040.0,111030.0,0.3581]
[1752093934773,1.2925504,111040.0,111030.0,0.3581]
[1752093935074,0.1800866,111030.0,111020.0,0.45632865]
[1752093935372,0.73450644,111030.0,111020.0,0.83147925]
[1752093936671,0.73450644,111030.0,111020.0,0.78247925]
[1752093936971,0.73450644,111030.0,111020.0,0.82967925]
[1752093937473,0.73450644,111030.0,111020.0,0.81452925]
[1752093937672,0.73450644,111030.0,111020.0,0.90444925]
[1752093938966,1.38510644,111030.0,111020.0,0.90444925]
[1752093939972,1.38510644,111030.0,111020.0,0.59444925]
[1752093940172,1.38510644,111030.0,111020.0,0.91444925]
[1752093940373,0.73450644,111030.0,111020.0,0.91444925]
[1752093940575,1.38502644,111030.0,111020.0,0.91444925]
[1752093940973,1.38502644,111030.0,111020.0,0.91544925]
[1752093941469,1.38502644,111030.0,111020.0,0.59544925]
[1752093941673,0.73450644,111030.0,111020.0,0.96544925]
[1752093942076,1.28344644,111030.0,111020.0,1.2416757]
[1752093942370,0.07326132,111030.0,111020.0,1.6024757]
[1752093942573,0.9205234,111040.0,111030.0,0.19752242]
[1752093942776,0.6309234,111040.0,111030.0,2.28537887]
[1752093943874,0.5418704,111040.0,111030.0,2.56160532]
[1752093944263,0.1810704,111040.0,111030.0,2.56160532]
[1752093944464,0.5418704,111040.0,111030.0,2.56160532]
[1752093944668,0.1820704,111040.0,111030.0,2.56160532]
[1752093945076,0.1820704,111040.0,111030.0,2.51160532]
[1752093945675,0.1810704,111040.0,111030.0,2.51160532]
[1752093945864,0.1810704,111040.0,111030.0,2.51260532]
[1752093946270,0.001,111040.0,111030.0,2.51160532]
[1752093946472,0.001,111040.0,111030.0,2.19260532]
[1752093946670,0.001,111040.0,111030.0,2.55260532]
[1752093947377,0.55988585,111060.0,111050.0,0.1800541]
[1752093947578,0.55988585,111060.0,111050.0,2.15295055]
[1752093947782,0.55988585,111060.0,111050.0,2.27707055]
[1752093948578,0.56188585,111060.0,111050.0,2.27707055]
[1752093949877,0.56388585,111060.0,111050.0,2.0008441]
[1752093950072,0.56388585,111060.0,111050.0,2.20707055]
[1752093951485,0.56388585,111060.0,111050.0,2.22707055]
[1752093954798,0.56388585,111060.0,111050.0,1.9508441]
[1752093955098,0.61068585,111060.0,111050.0,1.9908441]
[1752093955293,0.9389123,111060.0,111050.0,0.03651]
[1752093955498,0.9389123,111060.0,111050.0,0.5365642]
[1752093955901,0.9389123,111060.0,111050.0,0.35651]
[1752093956102,0.9389123,111060.0,111050.0,0.03651]
[1752093956302,0.9389123,111060.0,111050.0,0.53377508]
[1752093956601,0.66268585,111060.0,111050.0,0.55829508]
[1752093956799,0.66268585,111060.0,111050.0,0.03372088]
[1752093957001,0.9389123,111060.0,111050.0,0.03372088]
[1752093957197,0.9389123,111060.0,111050.0,0.39372088]
[1752093957398,0.9389123,111060.0,111050.0,0.37651]
[1752093957595,0.1800541,111050.0,111040.0,0.2973908]
[1752093957797,1.2903141,111050.0,111040.0,0.2210868]
[1752093958101,1.2903141,111050.0,111040.0,0.5910868]
[1752093958495,1.56654055,111050.0,111040.0,0.2100568]
[1752093958696,1.2903141,111050.0,111040.0,0.4900568]
[1752093958892,1.2903141,111050.0,111040.0,0.1800568]
[1752093959098,0.1800704,111040.0,111030.0,0.36085072]
[1752093959297,0.6395704,111040.0,111030.0,0.47546582]
[1752093959507,0.6395704,111040.0,111030.0,0.42846582]
[1752093959702,0.73572645,111040.0,111020.0,0.07372]
[1752093959997,0.73572645,111040.0,111000.0,0.33178165]
[1752093959998,0.180119,111010.0,111000.0,0.02632172]
[1752093960200,1.550919,111010.0,111000.0,0.04283172]
[1752093960507,1.649619,111010.0,111000.0,0.22296702]
[1752093960705,1.649619,111010.0,111000.0,0.85839347]
[1752093960896,1.649619,111010.0,111000.0,0.90709347]
[1752093961096,1.190079,111010.0,111000.0,0.90709347]
[1752093961296,0.829239,111010.0,111000.0,0.90709347]
[1752093961604,1.190039,111010.0,111000.0,0.63086702]
[1752093961804,1.26043727,111010.0,111000.0,0.96709347]
[1752093962199,1.26043727,111010.0,111000.0,0.98074491]
[1752093962906,0.89963727,111010.0,111000.0,0.95209347]
[1752093963105,0.25051727,111010.0,111000.0,0.95209347]
[1752093963303,0.61131727,111010.0,111000.0,0.95209347]
[1752093963705,0.25051727,111010.0,111000.0,1.60117347]
[1752093964410,0.61131727,111010.0,111000.0,0.32586702]
[1752093964595,0.61131727,111010.0,111000.0,1.07486702]
[1752093964795,0.61131727,111010.0,111000.0,1.59109347]
[1752093965307,0.61131727,111010.0,111000.0,1.57109347]
[1752093965601,0.43219827,111010.0,111000.0,1.57509347]
[1752093965808,0.25151727,111010.0,111000.0,1.57509347]
[1752093966608,0.25151727,111010.0,111000.0,0.92609347]
[1752093966810,0.61231727,111010.0,111000.0,0.92609347]
[1752093967208,0.61231727,111010.0,111000.0,0.60116702]
[1752093967405,0.71051727,111010.0,111000.0,0.60196702]
[1752093968010,0.71051727,111010.0,111000.0,0.87819347]
[1752093968210,0.71051727,111010.0,111000.0,0.92779347]
[1752093968415,0.71051727,111010.0,111000.0,0.91459347]
[1752093968810,0.34971727,111010.0,111000.0,0.91459347]
[1752093969010,0.71051727,111010.0,111000.0,0.91459347]
[1752093969413,0.34971727,111010.0,111000.0,0.91459347]
[1752093969912,0.71051727,111010.0,111000.0,0.91459347]
[1752093970308,0.34971727,111010.0,111000.0,0.91459347]
[1752093970508,0.71051727,111010.0,111000.0,0.91459347]
[1752093970913,0.71051727,111010.0,111000.0,0.63836702]
[1752093971409,0.34971727,111010.0,111000.0,0.91459347]
[1752093971913,0.71051727,111010.0,111000.0,0.93459347]
[1752093972406,0.72015827,111010.0,111000.0,1.21081992]
[1752093972713,1.08095827,111010.0,111000.0,1.21081992]
[1752093972913,1.08095827,111010.0,111000.0,1.26081992]
[1752093973613,1.26107727,111010.0,111000.0,1.26081992]
[1752093974117,0.61231727,111010.0,111000.0,1.26081992]
[1752093974414,0.25151727,111010.0,111000.0,1.26081992]
[1752093974818,0.25151727,111010.0,111000.0,0.98459347]
[1752093975012,0.25151727,111010.0,111000.0,0.68459347]
[1752093976017,0.181119,111010.0,111000.0,0.68459347]
[1752093976315,0.541919,111010.0,111000.0,0.32836702]
[1752093976515,0.638919,111010.0,111000.0,0.28156702]
[1752093977109,0.638919,111010.0,111000.0,0.23196702]
[1752093977414,0.278119,111010.0,111000.0,0.23196702]
[1752093978020,0.278119,111010.0,111000.0,0.50819347]
[1752093978216,0.541919,111010.0,111000.0,0.50819347]
[1752093978415,0.181119,111010.0,111000.0,0.60419347]
[1752093978611,0.541919,111010.0,111000.0,0.60419347]
[1752093979110,0.61331708,111010.0,111000.0,0.60419347]
[1752093981117,0.25251708,111010.0,111000.0,0.68419347]
[1752093981517,0.25251708,111010.0,111000.0,0.60419347]
[1752093981716,0.25251708,111010.0,111000.0,0.67419347]
[1752093982315,0.61331708,111010.0,111000.0,0.67419347]
[1752093982912,0.61331708,111010.0,111000.0,0.15173172]
[1752093983112,0.71261708,111010.0,111000.0,0.33186702]
[1752093985009,0.66241708,111010.0,111000.0,0.60809347]
[1752093985214,0.61331708,111010.0,111000.0,0.65389347]
[1752093985515,0.25251708,111010.0,111000.0,0.65389347]
[1752093986113,0.61331708,111010.0,111000.0,0.65389347]
[1752093986314,0.66221708,111010.0,111000.0,0.65389347]
[1752093986722,0.66221708,111010.0,111000.0,0.60389347]
[1752093987418,0.61331708,111010.0,111000.0,0.60389347]
[1752093987619,0.90043708,111010.0,111000.0,0.60389347]
[1752093988626,1.26123708,111010.0,111000.0,0.60389347]
[1752093988921,0.61331708,111010.0,111000.0,0.61389347]
[1752093990424,0.61331708,111010.0,111000.0,0.60389347]
[1752093991222,0.61331708,111010.0,111000.0,0.88011992]
[1752093991523,0.61331708,111010.0,111000.0,0.56286347]
[1752093991822,0.61331708,111010.0,111000.0,0.60296347]
[1752093992420,0.61331708,111010.0,111000.0,1.25064347]
[1752093993927,0.61331708,111010.0,111000.0,0.60296347]
[1752093994418,0.88954353,111010.0,111000.0,0.05090172]
[1752093994624,0.98994353,111010.0,111000.0,0.01080172]
[1752093996729,1.36111708,111010.0,111000.0,0.24103702]
[1752093996927,1.36111708,111010.0,111000.0,0.51726347]
[1752093997721,1.36111708,111010.0,111000.0,0.24103702]
[1752093998924,1.36111708,111010.0,111000.0,0.20093702]
[1752093999229,1.36111708,111010.0,111000.0,0.21626702]
[1752094002632,1.36111708,111010.0,111000.0,0.24068702]
[1752094003232,1.36111708,111010.0,111000.0,0.21626702]
[1752094003426,1.36111708,111010.0,111000.0,0.03613172]
[1752094003625,1.63734353,111010.0,111000.0,0.03613172]
[1752094003827,1.36111708,111010.0,111000.0,0.03613172]
[1752094004132,1.63734353,111010.0,111000.0,0.03613172]
[1752094004329,1.63734353,111010.0,111000.0,0.21626702]
[1752094004735,1.36111708,111010.0,111000.0,0.21626702]
[1752094005734,1.63734353,111010.0,111000.0,0.03613172]
[1752094006136,1.36111708,111010.0,111000.0,0.21626702]
[1752094006327,1.63734353,111010.0,111000.0,0.24068702]
[1752094006527,1.63734353,111010.0,111000.0,0.28718702]
[1752094006736,1.36111708,111010.0,111000.0,0.28718702]
[1752094006935,1.36111708,111010.0,111000.0,0.24068702]
[1752094007236,1.36063708,111010.0,111000.0,0.21626702]
[1752094008230,1.63686353,111010.0,111000.0,0.21626702]
[1752094008737,1.36063708,111010.0,111000.0,0.21626702]
[1752094009036,1.63682353,111010.0,111000.0,0.21626682]
[1752094009629,1.63682353,111010.0,111000.0,0.21626692]
[1752094009831,1.63682353,111010.0,111000.0,0.03613172]
[1752094010432,1.63682353,111010.0,111000.0,0.02080172]
[1752094010942,0.1801352,111000.0,110990.0,0.00180188]
[1752094011131,1.1893881,111000.0,110990.0,0.00180188]
[1752094011437,0.91316165,111000.0,110990.0,0.00180188]
[1752094012134,1.1903881,111000.0,110990.0,0.00680188]
[1752094012340,1.1903881,111000.0,110990.0,0.01180188]
[1752094012539,0.91416165,111000.0,110990.0,0.01180188]
[1752094014038,0.91516165,111000.0,110990.0,0.00680188]
[1752094014341,1.1913881,111000.0,110990.0,0.00180188]
[1752094014743,0.91516165,111000.0,110990.0,0.00180188]
[1752094016140,1.56172165,111000.0,110990.0,0.00180188]
[1752094016342,1.8379481,111000.0,110990.0,0.00180188]
[1752094016941,1.56172165,111000.0,110990.0,0.00180188]
[1752094017644,1.8379481,111000.0,110990.0,0.00180188]
[1752094019043,2.0181401,111000.0,110990.0,0.00180188]
[1752094019844,2.0181401,111000.0,110990.0,8e-08]
[1752094021048,2.3781401,111000.0,110990.0,8e-08]
[1752094022041,2.3981401,111000.0,110990.0,8e-08]
[1752094022845,2.3681401,111000.0,110990.0,8e-08]
[1752094025441,1.44535365,111000.0,110990.0,8e-08]
[1752094025636,1.66120165,111000.0,110990.0,8e-08]
[1752094025864,1.01516165,111000.0,110990.0,8e-08]
[1752094026147,1.66120165,111000.0,110990.0,8e-08]
[1752094026350,1.57120165,111000.0,110990.0,8e-08]
[1752094027055,1.47520165,111000.0,110990.0,0.01533008]
[1752094027245,1.47520165,111000.0,110990.0,0.10953008]
[1752094027448,0.82916165,111000.0,110990.0,0.10953008]
[1752094027744,1.46508165,111000.0,110990.0,0.10953008]
[1752094027944,1.47508165,111000.0,110990.0,0.10953008]
[1752094028352,1.52558165,111000.0,110990.0,0.10953008]
[1752094028949,0.87966165,111000.0,110990.0,0.10953008]
[1752094029149,1.52558165,111000.0,110990.0,0.10953008]
[1752094029648,1.57558165,111000.0,110990.0,0.10953008]
[1752094030053,1.57558165,111000.0,110990.0,0.09420008]
[1752094030857,0.5529352,111000.0,110990.0,0.29079168]